bitfinex/quotes_BTCUSD_20251120
["timestamp","ask_amount","ask_price","bid_price","bid_amount"]
[1763605821868,0.04006,92572.0,92571.0,0.2]
[1763605822023,0.04006,92572.0,92571.0,0.206]
[1763605822214,0.04006,92572.0,92571.0,0.203]
[1763605822415,0.04006,92572.0,92571.0,0.2]
[1763605822633,0.04006,92572.0,92571.0,0.203]
[1763605822833,0.11916849,92572.0,92571.0,0.206]
[1763605823319,0.11916849,92572.0,92571.0,0.106]
[1763605823519,0.09216249,92572.0,92571.0,0.106]
[1763605827595,0.09216249,92572.0,92551.0,0.01178]
[1763605827794,0.09216249,92572.0,92550.0,0.3887957]
[1763605827795,0.21609473,92552.0,92550.0,0.3887957]
[1763605828000,0.21609473,92552.0,92548.0,3.0]
[1763605828001,0.21610182,92549.0,92548.0,3.0]
[1763605828194,0.01080497,92550.0,92548.0,3.0325684]
[1763605828423,0.01080497,92550.0,92548.0,0.00012698]
[1763605828620,0.01080497,92550.0,92549.0,0.00364]
[1763605828998,0.01080497,92550.0,92549.0,0.10364]
[1763605829402,0.01280497,92550.0,92549.0,0.10364]
[1763605829971,0.01280497,92550.0,92549.0,0.1]
[1763605830104,0.01280497,92550.0,92549.0,0.2]
[1763605830723,0.01080497,92550.0,92549.0,0.2]
[1763605831127,0.01380497,92550.0,92549.0,0.2]
[1763605831363,0.007,92550.0,92549.0,0.2]
[1763605832159,0.01080438,92555.0,92550.0,0.01080497]
[1763605832366,0.01080438,92555.0,92550.0,0.22690227]
[1763605832836,0.01080438,92555.0,92551.0,0.01080485]
[1763605833252,0.01080485,92551.0,92548.0,0.00012698]
[1763605833456,0.2160994,92550.0,92548.0,0.00012698]
[1763605834460,0.01080485,92551.0,92548.0,0.00012698]
[1763605834660,0.22690359,92551.0,92548.0,0.00012698]
[1763605834872,0.21910146,92550.0,92548.0,0.00012698]
[1763605835282,0.21610146,92550.0,92549.0,0.1]
[1763605835486,0.004,92555.0,92553.0,0.21609067]
[1763605836104,0.01080345,92563.0,92559.0,0.01080391]
[1763605836673,0.0108024,92572.0,92565.0,0.21606438]
[1763605836838,0.22685542,92570.0,92565.0,0.21606438]
[1763605837403,0.01080275,92569.0,92565.0,0.22686759]
[1763605837656,0.01080286,92568.0,92565.0,0.01080321]
[1763605837871,0.5,92572.0,92570.0,0.21605263]
[1763605839198,0.5,92572.0,92568.0,0.1]
[1763605839199,0.22685289,92571.0,92568.0,0.1]
[1763605839308,0.01080251,92571.0,92568.0,0.11080286]
[1763605840168,0.01080251,92571.0,92568.0,0.1]
[1763605840372,0.5178024,92572.0,92568.0,0.11080286]
[1763605840571,0.73085224,92572.0,92568.0,0.1]
[1763605840856,0.003,92571.0,92568.0,0.1]
[1763605841270,0.73085224,92572.0,92570.0,0.1]
[1763605841499,0.504,92572.0,92570.0,0.1]
[1763605841716,0.507,92572.0,92570.0,0.1]
[1763605841853,0.503,92572.0,92570.0,0.31605057]
[1763605842057,0.004,92571.0,92570.0,0.31605057]
[1763605842374,0.503,92572.0,92570.0,0.31605057]
[1763605842576,0.503,92572.0,92571.0,0.1]
[1763605842782,0.504,92572.0,92571.0,0.1]
[1763605842982,0.5,92572.0,92571.0,0.1]
[1763605843184,0.503,92572.0,92571.0,0.1]
[1763605843699,0.5,92572.0,92571.0,0.1]
[1763605843902,0.503,92572.0,92571.0,0.1]
[1763605844304,0.503,92572.0,92571.0,0.2]
[1763605845090,0.503,92572.0,92571.0,3.2]
[1763605845302,0.503,92572.0,92571.0,3.23243244]
[1763605845501,0.507,92572.0,92571.0,3.23243244]
[1763605849202,0.507,92572.0,92571.0,3.44848282]
[1763605850493,0.507,92572.0,92571.0,3.23243244]
[1763605850866,0.507,92572.0,92571.0,3.44848282]
[1763605853794,0.507,92572.0,92571.0,3.23243244]
[1763605854194,0.507,92572.0,92571.0,0.23607244]
[1763605858487,0.50689198,92572.0,92571.0,3.23607244]
[1763605860282,0.50689198,92572.0,92571.0,3.55907244]
[1763605860838,0.48931797,92572.0,92571.0,3.55907244]
[1763605861207,0.48531797,92572.0,92571.0,3.65907244]
[1763605861624,0.46800879,92572.0,92571.0,3.65907244]
[1763605862150,0.47000879,92572.0,92571.0,3.65907244]
[1763605862396,0.46551071,92572.0,92571.0,3.65907244]
[1763605862609,0.01079715,92617.0,92612.0,0.21595295]
[1763605862774,0.01079703,92618.0,92613.0,0.01079762]
[1763605862942,0.22673499,92620.0,92615.0,0.01079738]
[1763605863147,0.01079715,92617.0,92611.0,0.01079785]
[1763605863346,0.01079692,92619.0,92613.0,0.01079762]
[1763605863588,0.01079727,92616.0,92613.0,0.01079762]
[1763605863793,0.01079738,92615.0,92611.0,0.01079785]
[1763605863965,0.01079762,92613.0,92610.0,0.3887957]
[1763605864149,0.01079762,92613.0,92608.0,0.0107982]
[1763605864372,0.01079762,92613.0,92609.0,0.01079808]
[1763605864534,0.00042284,92616.0,92611.0,0.01079785]
[1763605864741,0.00042284,92616.0,92613.0,0.01079762]
[1763605865493,0.00042284,92616.0,92614.0,0.21595007]
[1763605865642,0.00042284,92616.0,92614.0,0.1]
[1763605867032,0.21594774,92615.0,92614.0,0.1]
[1763605867233,0.25532774,92615.0,92614.0,0.1]
[1763605867924,0.25532774,92615.0,92614.0,0.102]
[1763605868287,0.23152774,92615.0,92614.0,0.1]
[1763605868483,0.01558,92615.0,92614.0,0.1]
[1763605868751,0.00042284,92616.0,92614.0,0.102]
[1763605868875,0.21594774,92615.0,92614.0,0.102]
[1763605869882,0.24323774,92615.0,92614.0,0.102]
[1763605870083,0.26703774,92615.0,92614.0,0.102]
[1763605870967,0.26703774,92615.0,92614.0,0.1]
[1763605871324,0.26703774,92615.0,92614.0,0.102]
[1763605871898,0.26703774,92615.0,92614.0,0.1]
[1763605872099,0.26703774,92615.0,92614.0,0.102]
[1763605873462,0.24323774,92615.0,92614.0,0.102]
[1763605874262,0.22765774,92615.0,92614.0,0.102]
[1763605874463,0.24323774,92615.0,92614.0,0.102]
[1763605875911,0.22765774,92615.0,92614.0,0.102]
[1763605877159,0.01171,92615.0,92614.0,0.102]
[1763605877731,0.00042284,92616.0,92614.0,0.102]
[1763605878550,0.00042284,92616.0,92614.0,0.1]
[1763605878951,0.00042284,92616.0,92614.0,0.3179484]
[1763605879305,0.00042284,92616.0,92614.0,0.102]
[1763605881476,0.21594774,92615.0,92614.0,0.102]
[1763605882079,0.21594774,92615.0,92614.0,0.099754]
[1763605882279,0.21594774,92615.0,92614.0,0.097754]
[1763605882686,0.00042284,92616.0,92614.0,0.099754]
[1763605882882,0.21637001,92616.0,92614.0,0.099754]
[1763605883825,0.21637001,92616.0,92614.0,0.097754]
[1763605884171,0.21637001,92616.0,92614.0,0.099754]
[1763605885613,0.00042284,92616.0,92614.0,0.099754]
[1763605886218,0.21636963,92616.0,92614.0,0.099754]
[1763605886623,0.00042284,92616.0,92614.0,0.099754]
[1763605886943,0.21636965,92616.0,92614.0,0.099754]
[1763605887144,0.00042284,92616.0,92614.0,0.099754]
[1763605887638,0.00042284,92616.0,92615.0,0.21594774]
[1763605887806,0.00042284,92616.0,92614.0,0.31570208]
[1763605888015,0.00042284,92616.0,92615.0,0.1]
[1763605888849,0.00042284,92616.0,92615.0,0.102]
[1763605889164,0.00042284,92616.0,92615.0,0.19975]
[1763605889986,0.00042284,92616.0,92615.0,0.19775]
[1763605890346,0.00342284,92616.0,92615.0,0.19775]
[1763605890545,0.00333425,92616.0,92615.0,0.19775]
[1763605890726,0.00833425,92616.0,92615.0,0.19775]
[1763605897414,0.00833425,92616.0,92615.0,0.52075]
[1763605897590,0.00833425,92616.0,92615.0,0.53154633]
[1763605898403,0.00333425,92616.0,92615.0,0.53154633]
[1763605898653,0.00333425,92616.0,92615.0,0.63154633]
[1763605898926,0.00733425,92616.0,92615.0,0.63154633]
[1763605899493,0.00433425,92616.0,92615.0,0.63154633]
[1763605899698,0.00433425,92616.0,92615.0,3.63154633]
[1763605899906,0.00733425,92616.0,92615.0,3.63154633]
[1763605905898,0.00433425,92616.0,92615.0,3.63518633]
[1763605906309,0.00633425,92616.0,92615.0,3.63518633]
[1763605906461,0.00233425,92616.0,92615.0,3.63518633]
[1763605906658,0.00033425,92616.0,92615.0,3.63518633]
[1763605907204,0.00333425,92616.0,92615.0,3.63518633]
[1763605907403,0.00733425,92616.0,92615.0,3.63518633]
[1763605907798,0.00733425,92616.0,92615.0,0.63518633]
[1763605907999,0.00733425,92616.0,92615.0,3.63518633]
[1763605908810,0.00733425,92616.0,92615.0,0.63518633]
[1763605909011,0.00733425,92616.0,92615.0,3.63518633]
[1763605917691,0.00733425,92616.0,92615.0,0.63518633]
[1763605923133,0.04730425,92616.0,92615.0,0.30854633]
[1763605923345,0.01080193,92576.0,92570.0,0.4]
[1763605923548,0.01080111,92583.0,92556.0,0.00947]
[1763605923549,0.21608072,92558.0,92556.0,0.00947]
[1763605923783,0.21608072,92558.0,92543.0,0.00947]
[1763605923784,0.01080532,92547.0,92543.0,0.00947]
[1763605923957,0.23191108,92545.0,92532.0,0.00947]
[1763605924161,0.21612976,92537.0,92536.0,0.03244925]
[1763605924358,0.22783314,92540.0,92530.0,0.0002]
[1763605924554,0.1102925,92566.0,92550.0,0.22593]
[1763605924555,0.21608797,92555.0,92550.0,0.22593]
[1763605924810,0.21608306,92557.0,92551.0,0.01646]
[1763605925100,0.21609707,92551.0,92550.0,0.00947]
[1763605925275,0.21609707,92551.0,92550.0,3.00947]
[1763605925483,0.21609707,92551.0,92550.0,3.02593]
[1763605925661,0.21612509,92539.0,92538.0,0.00947]
[1763605925875,0.21614377,92531.0,92530.0,3.00028858]
[1763605926100,0.21614377,92531.0,92530.0,3.00392858]
[1763605926306,0.21614377,92531.0,92530.0,3.32692858]
[1763605926501,0.21614377,92531.0,92530.0,3.42692858]
[1763605926909,0.21614377,92531.0,92530.0,3.52692858]
[1763605927285,0.21614377,92531.0,92530.0,3.62692858]
[1763605927482,0.22114377,92531.0,92530.0,3.62692858]
[1763605927705,0.22314377,92531.0,92530.0,3.62692858]
[1763605928227,0.22114377,92531.0,92530.0,3.62692858]
[1763605928772,0.22414377,92531.0,92530.0,3.62692858]
[1763605928931,0.22414377,92531.0,92530.0,3.30028858]
[1763605928932,0.27582377,92531.0,92530.0,3.30028858]
[1763605929132,0.27582377,92531.0,92530.0,0.30028858]
[1763605929796,0.27582377,92531.0,92530.0,0.20069059]
[1763605930373,0.26782377,92531.0,92530.0,0.20069059]
[1763605935775,0.21616714,92521.0,92520.0,0.0002]
[1763605935991,0.23196714,92521.0,92520.0,0.00032698]
[1763605936194,0.23196714,92521.0,92490.0,0.64238448]
[1763605936195,0.21623725,92491.0,92490.0,3.0]
[1763605936398,0.21623725,92491.0,92490.0,3.00010459]
[1763605936607,0.25620725,92491.0,92490.0,0.00010459]
[1763605937021,0.25620725,92491.0,92490.0,0.10010459]
[1763605937253,0.25920725,92491.0,92490.0,0.10010459]
[1763605937553,0.25920725,92491.0,92490.0,0.20010459]
[1763605938633,0.25620725,92491.0,92490.0,0.20010459]
[1763605939279,0.31194974,92491.0,92490.0,0.20010459]
[1763605940830,0.31194974,92491.0,92490.0,0.10010459]
[1763605945743,0.23203725,92491.0,92490.0,0.10010459]
[1763605946407,0.2270442,92493.0,92490.0,0.10125374]
[1763605946612,0.2270442,92493.0,92492.0,0.00946]
[1763605947202,0.2270442,92493.0,92492.0,0.10946]
[1763605948203,0.2270442,92493.0,92492.0,0.20946]
[1763605948616,0.01081162,92493.0,92492.0,0.20946]
[1763605948823,0.22704419,92493.0,92492.0,0.20946]
[1763605949024,0.44405189,92520.0,92492.0,0.22192]
[1763605949228,0.2162089,92504.0,92492.0,0.44896461]
[1763605949451,0.2162089,92504.0,92493.0,0.01081162]
[1763605949675,0.01081127,92496.0,92492.0,0.23273174]
[1763605949869,0.22703833,92496.0,92492.0,0.21892]
[1763605950275,0.22703833,92496.0,92492.0,0.22092]
[1763605950477,0.01081116,92497.0,92492.0,0.23173174]
[1763605950677,0.21621844,92500.0,92493.0,3.21623059]
[1763605950882,0.01081069,92501.0,92495.0,0.01081139]
[1763605951084,0.01081092,92499.0,92495.0,0.01081139]
[1763605951252,0.21621177,92502.0,92495.0,0.01081139]
[1763605951445,0.01081057,92502.0,92500.0,3.0]
[1763605951690,0.01081057,92502.0,92498.0,3.0]
[1763605951864,0.22702947,92499.0,92495.0,3.0]
[1763605952065,0.21622089,92498.0,92497.0,3.0]
[1763605952269,0.21622556,92496.0,92494.0,3.0]
[1763605952491,0.21622556,92496.0,92492.0,0.1161]
[1763605952492,0.21623024,92494.0,92492.0,0.1]
[1763605952701,0.21623491,92492.0,92491.0,0.323]
[1763605952898,0.23128491,92492.0,92490.0,0.00010459]
[1763605953323,0.21623491,92492.0,92490.0,0.00010459]
[1763605954543,0.21623491,92492.0,92491.0,0.1]
[1763605955066,0.21623491,92492.0,92491.0,0.2]
[1763605955272,0.22423491,92492.0,92491.0,0.2]
[1763605955644,0.22123491,92492.0,92491.0,0.2]
[1763605956025,0.22423491,92492.0,92491.0,0.2]
[1763605956242,0.23933336,92492.0,92491.0,0.2]
[1763605956630,0.22423491,92492.0,92491.0,0.2]
[1763605957026,0.24433055,92492.0,92491.0,0.2]
[1763605957854,0.28231055,92492.0,92491.0,0.2]
[1763605958056,0.33441304,92492.0,92491.0,0.2]
[1763605958472,0.24433055,92492.0,92491.0,0.2011204]
[1763605958650,0.24433055,92492.0,92491.0,0.1011204]
[1763605959819,0.25938055,92492.0,92491.0,0.2011204]
[1763605960021,0.28231055,92492.0,92491.0,0.2011204]
[1763605962407,0.28231055,92492.0,92491.0,0.1011204]
[1763605964723,0.25938055,92492.0,92491.0,0.1011204]
[1763605964921,0.02809564,92492.0,92491.0,0.1011204]
[1763605965610,0.24433055,92492.0,92491.0,0.1011204]
[1763605966113,0.02809564,92492.0,92491.0,0.2011204]
[1763605967099,0.02809564,92492.0,92491.0,0.41735765]
[1763605968526,0.02809564,92492.0,92491.0,0.2011204]
[1763605971349,0.02809564,92492.0,92491.0,0.2105804]
[1763605971906,0.02809564,92492.0,92491.0,3.2200404]
[1763605972104,0.008,92492.0,92491.0,3.2200404]
[1763605973241,0.008,92492.0,92491.0,3.5430404]
[1763605973811,0.005,92492.0,92491.0,3.5430404]
[1763605974131,0.007,92492.0,92491.0,3.5430404]
[1763605974339,0.002,92492.0,92491.0,3.6430404]
[1763605974889,0.006,92492.0,92491.0,3.6430404]
[1763605976088,0.006,92492.0,92491.0,0.6430404]
[1763605976322,0.006,92492.0,92491.0,3.6466804]
[1763605977994,0.01080777,92526.0,92522.0,0.01080824]
[1763605978187,0.22696506,92526.0,92523.0,0.00946]
[1763605979028,0.22696506,92526.0,92524.0,0.1]
[1763605979991,0.21616005,92525.0,92524.0,0.1]
[1763605980357,0.21616005,92525.0,92524.0,0.103]
[1763605981069,0.21616005,92525.0,92524.0,0.2]
[1763605981304,0.21616005,92525.0,92524.0,0.203]
[1763605981809,0.22696506,92526.0,92524.0,0.203]
[1763605982015,0.01646,92525.0,92524.0,0.206]
[1763605982207,0.03971,92525.0,92524.0,0.206]
[1763605982408,0.01646,92525.0,92524.0,0.203]
[1763605983237,0.01646,92525.0,92524.0,0.206]
[1763605983583,0.22696506,92526.0,92524.0,0.206]
[1763605983808,0.01152,92529.0,92524.0,0.203]
[1763605983973,0.01152,92529.0,92525.0,0.01080788]
[1763605984376,0.01152,92529.0,92525.0,0.22696552]
[1763605984617,0.01152,92529.0,92526.0,0.01080777]
[1763605985019,0.01152,92529.0,92527.0,0.21615312]
[1763605985230,0.01080578,92543.0,92538.0,0.01080637]
[1763605985385,0.01208,92545.0,92538.0,0.01080637]
[1763605985599,0.22819326,92545.0,92538.0,0.01080637]
[1763605985799,0.0108059,92542.0,92537.0,0.01080648]
[1763605985998,0.01208,92545.0,92540.0,0.01080613]
[1763605986208,0.05210249,92554.0,92545.0,0.01080555]
[1763605986209,0.0108045,92554.0,92545.0,0.01080555]
[1763605986401,0.01080508,92549.0,92546.0,0.01080543]
[1763605986626,0.01080485,92551.0,92548.0,0.0108052]
[1763605986851,0.01080508,92549.0,92544.0,0.01080567]
[1763605987178,0.02325,92569.0,92550.0,0.00946]
[1763605987310,0.0108038,92560.0,92554.0,0.22689358]
[1763605987524,0.00012674,92565.0,92559.0,0.01080391]
[1763605987736,0.01080368,92561.0,92556.0,0.01080426]
[1763605987978,0.21607122,92563.0,92557.0,0.01080415]
[1763605988135,0.00012674,92565.0,92560.0,0.22687883]
[1763605988335,0.01092995,92565.0,92560.0,0.22687883]
[1763605988744,0.01080333,92564.0,92560.0,0.22687883]
[1763605988940,0.01080345,92563.0,92558.0,0.01080403]
[1763605989166,0.0108038,92560.0,92557.0,0.11080415]
[1763605989387,0.01080368,92561.0,92560.0,0.003]
[1763605989540,0.01080333,92564.0,92560.0,0.003]
[1763605989743,0.01208,92569.0,92562.0,0.22687295]
[1763605990063,0.01080228,92573.0,92562.0,0.22687295]
[1763605990064,0.01080251,92571.0,92564.0,0.22552672]
[1763605990266,0.22687255,92563.0,92560.0,0.002]
[1763605990823,0.22687255,92563.0,92561.0,0.1]
[1763605991252,0.01080345,92563.0,92561.0,0.2]
[1763605991461,0.01080333,92564.0,92561.0,0.2]
[1763605991810,0.00012674,92565.0,92561.0,0.21080368]
[1763605992013,0.00012674,92565.0,92564.0,0.21606672]
[1763605992215,0.00012674,92565.0,92564.0,0.22552672]
[1763605992494,0.00012674,92565.0,92564.0,3.55798672]
[1763605993254,0.00012674,92565.0,92564.0,3.66098672]
[1763605993458,0.00412674,92565.0,92564.0,3.66098672]
[1763605993743,0.00012674,92565.0,92564.0,3.66098672]
[1763605993949,0.00012674,92565.0,92564.0,3.43246]
[1763605994062,0.00012674,92565.0,92564.0,3.65798672]
[1763605994270,0.00312674,92565.0,92564.0,3.75798672]
[1763605995152,0.00312674,92565.0,92564.0,3.85798672]
[1763605995303,0.00712674,92565.0,92564.0,3.85798672]
[1763605995507,0.00708001,92565.0,92564.0,3.85798672]
[1763605996157,0.00708001,92565.0,92564.0,3.63246]
[1763605996402,0.00408001,92565.0,92564.0,3.63246]
[1763605996600,8.001e-05,92565.0,92564.0,3.64192]
[1763605996810,0.00308001,92565.0,92564.0,3.30946]
[1763605997230,0.00608001,92565.0,92564.0,3.30946]
[1763605997996,0.00608001,92565.0,92564.0,3.3]
[1763605999389,0.00608001,92565.0,92564.0,3.51606672]
[1763605999808,0.00608001,92565.0,92564.0,3.3]
[1763606000824,0.26185439,92565.0,92564.0,0.3]
[1763606001533,0.23860439,92565.0,92564.0,0.3]
[1763606001737,0.01954001,92565.0,92564.0,0.3]
[1763606001899,8.001e-05,92565.0,92564.0,0.3]
[1763606002097,0.22214439,92565.0,92564.0,0.2]
[1763606002301,0.26185439,92565.0,92564.0,0.2]
[1763606002732,0.23860439,92565.0,92564.0,0.2]
[1763606003480,0.02254001,92565.0,92564.0,0.2]
[1763606003644,0.00608001,92565.0,92564.0,0.2]
[1763606006560,0.00608001,92565.0,92564.0,0.41606672]
[1763606007997,0.00608001,92565.0,92564.0,0.2]
[1763606012372,0.00608001,92565.0,92564.0,0.41606672]
[1763606017340,0.00608001,92565.0,92564.0,0.2]
[1763606021650,0.00608001,92565.0,92564.0,0.41606672]
[1763606023262,0.00608001,92565.0,92564.0,3.41606672]
[1763606024563,0.00608001,92565.0,92564.0,3.51606672]
[1763606025016,0.00308001,92565.0,92564.0,3.51606672]
[1763606025167,8.001e-05,92565.0,92564.0,3.51606672]
[1763606025566,0.00308001,92565.0,92564.0,3.51606672]
[1763606026226,0.00508001,92565.0,92564.0,3.51606672]
[1763606029320,0.00508001,92565.0,92564.0,0.51606672]
[1763606029520,0.00508001,92565.0,92564.0,3.51606672]
[1763606029928,0.00508001,92565.0,92564.0,3.3]
[1763606030131,0.00508001,92565.0,92564.0,3.30364]
[1763606030310,0.00508001,92565.0,92564.0,3.3]
[1763606030913,0.04338001,92565.0,92564.0,0.3]
[1763606031160,0.04638001,92565.0,92564.0,0.3]
[1763606031332,0.04638001,92565.0,92564.0,0.2]
[1763606031722,0.04338001,92565.0,92564.0,0.2]
[1763606031923,0.04738001,92565.0,92564.0,0.2]
[1763606032359,0.04038001,92565.0,92564.0,0.2]
[1763606032735,0.04738001,92565.0,92564.0,0.2]
[1763606035301,0.4224825,92565.0,92564.0,0.2]
[1763606035992,0.4224825,92565.0,92564.0,0.1]
[1763606035993,0.4194825,92565.0,92564.0,0.1]
[1763606036195,0.4154825,92565.0,92564.0,0.1]
[1763606036342,0.4154825,92565.0,92564.0,0.105]
[1763606037962,0.01579001,92565.0,92564.0,0.105]
[1763606038162,8.001e-05,92565.0,92564.0,0.105]
[1763606038970,8.001e-05,92565.0,92564.0,0.205]
[1763606040580,8.001e-05,92565.0,92564.0,0.42106672]
[1763606041396,8.001e-05,92565.0,92564.0,0.41906672]
[1763606041618,8.001e-05,92565.0,92564.0,0.42206672]
[1763606042025,8.001e-05,92565.0,92564.0,0.206]
[1763606042741,8.001e-05,92565.0,92564.0,0.203]
[1763606043382,0.01617001,92565.0,92564.0,0.203]
[1763606043555,0.03896001,92565.0,92564.0,0.203]
[1763606043733,0.0910625,92565.0,92564.0,0.203]
[1763606044539,0.11807054,92565.0,92564.0,0.203]
[1763606045344,0.0910625,92565.0,92564.0,0.203]
[1763606045915,0.11807054,92565.0,92564.0,0.203]
[1763606046818,0.0910625,92565.0,92564.0,0.203]
[1763606047739,0.11807054,92565.0,92564.0,0.203]
[1763606048883,0.09528054,92565.0,92564.0,0.203]
[1763606049038,0.0910625,92565.0,92564.0,0.203]
[1763606049849,8.001e-05,92565.0,92564.0,0.203]
[1763606052151,0.01617001,92565.0,92564.0,0.203]
[1763606053295,0.03896001,92565.0,92564.0,0.203]
[1763606056363,0.01617001,92565.0,92564.0,0.203]
[1763606057769,8.001e-05,92565.0,92564.0,0.203]
[1763606059440,0.21614439,92565.0,92564.0,0.203]
[1763606059642,8.001e-05,92565.0,92564.0,0.203]
[1763606060304,0.03896001,92565.0,92564.0,0.203]
[1763606060725,0.12171054,92565.0,92564.0,0.203]
[1763606060932,0.55500304,92565.0,92564.0,0.178]
[1763606061134,0.527995,92565.0,92564.0,0.178]
[1763606061943,0.527995,92565.0,92564.0,0.078]
[1763606062155,0.527995,92565.0,92564.0,0.079]
[1763606062386,0.527995,92565.0,92564.0,0.076]
[1763606062594,0.4177025,92565.0,92564.0,0.076]
[1763606062806,0.4177025,92565.0,92564.0,0.078]
[1763606067020,0.4140625,92565.0,92564.0,0.078]
[1763606067229,8.001e-05,92565.0,92564.0,0.078]
[1763606067450,0.21614439,92565.0,92564.0,0.078]
[1763606068395,8.001e-05,92565.0,92564.0,0.175]
[1763606068752,0.21614439,92565.0,92564.0,0.181]
[1763606069835,8.001e-05,92565.0,92564.0,0.181]
[1763606070043,8.001e-05,92565.0,92564.0,0.19668]
[1763606070263,8.001e-05,92565.0,92564.0,0.21978]
[1763606070716,8.001e-05,92565.0,92564.0,0.19668]
[1763606071415,8.001e-05,92565.0,92564.0,0.21978]
[1763606071621,8.001e-05,92565.0,92564.0,3.21378]
[1763606072021,0.00708001,92565.0,92564.0,3.21378]
[1763606072812,0.00408001,92565.0,92564.0,3.21378]
[1763606073013,0.00408001,92565.0,92564.0,3.31378]
[1763606073224,0.00308001,92565.0,92564.0,3.31378]
[1763606073630,0.00708001,92565.0,92564.0,3.31378]
[1763606083673,0.00408001,92565.0,92564.0,3.31378]
[1763606084069,0.00708001,92565.0,92564.0,3.31378]
[1763606084765,0.00308001,92565.0,92564.0,3.31378]
[1763606085191,0.00708001,92565.0,92564.0,3.31378]
[1763606095624,0.00106798,92565.0,92564.0,3.63678]
[1763606095827,0.00106798,92565.0,92564.0,3.6485]
[1763606096446,0.0004,92590.0,92564.0,3.6485]
[1763606096447,0.0004,92590.0,92589.0,3.21600838]
[1763606096669,0.0008231,92590.0,92589.0,3.0187]
[1763606096878,0.0008231,92590.0,92589.0,3.04211]
[1763606097326,0.0008231,92590.0,92589.0,3.14211]
[1763606097531,0.0038231,92590.0,92589.0,3.14211]
[1763606098781,0.0038231,92590.0,92589.0,3.21711]
[1763606099034,0.0068231,92590.0,92589.0,3.21711]
[1763606099267,0.0068231,92590.0,92589.0,3.175]
[1763606099459,0.0466431,92590.0,92589.0,0.175]
[1763606099863,0.0233631,92590.0,92589.0,0.175]
[1763606100070,0.0068231,92590.0,92589.0,0.175]
[1763606100411,0.0466431,92590.0,92589.0,0.175]
[1763606101100,0.22682408,92583.0,92579.0,0.20543258]
[1763606101299,0.22682408,92583.0,92579.0,0.21623416]
[1763606101487,0.22682408,92583.0,92576.0,0.00833]
[1763606101488,0.22682594,92582.0,92576.0,0.00833]
[1763606101678,0.22685233,92572.0,92567.0,0.01080298]
[1763606101868,0.01080251,92571.0,92565.0,0.01444321]
[1763606102042,0.01080216,92574.0,92566.0,0.0108031]
[1763606102247,0.01080251,92571.0,92570.0,0.1]
[1763606102658,0.05009251,92571.0,92570.0,0.1]
[1763606103286,0.05009251,92571.0,92570.0,0.2]
[1763606103737,0.05009251,92571.0,92570.0,0.3]
[1763606104470,0.05009251,92571.0,92570.0,0.2]
[1763606104839,0.05209251,92571.0,92570.0,0.2]
[1763606105253,0.04129,92571.0,92570.0,0.2]
[1763606105608,0.003,92571.0,92570.0,0.45483271]
[1763606105968,0.006,92571.0,92570.0,0.45483271]
[1763606106167,0.006,92571.0,92570.0,3.45483271]
[1763606106496,0.003,92571.0,92570.0,3.45483271]
[1763606106672,0.005,92571.0,92570.0,3.45483271]
[1763606106874,0.002,92571.0,92570.0,3.45483271]
[1763606107277,0.002,92571.0,92570.0,3.55483271]
[1763606107702,0.005,92571.0,92570.0,3.55483271]
[1763606107905,0.003,92571.0,92570.0,3.55483271]
[1763606108451,0.005,92571.0,92570.0,3.55483271]
[1763606108878,0.002,92571.0,92570.0,3.55483271]
[1763606109290,0.004,92571.0,92570.0,3.55483271]
[1763606110801,0.004,92571.0,92570.0,3.87783271]
[1763606111223,0.00062219,92571.0,92570.0,3.87783271]
[1763606111635,0.0008231,92590.0,92589.0,0.21600838]
[1763606111839,0.0008231,92590.0,92589.0,3.23481838]
[1763606112047,0.0008231,92590.0,92589.0,3.25842838]
[1763606112328,0.0008231,92590.0,92589.0,3.26922623]
[1763606112567,0.0008231,92590.0,92589.0,3.36922623]
[1763606113072,0.00274909,92610.0,92609.0,0.21596173]
[1763606113311,0.00287597,92610.0,92609.0,0.00364]
[1763606113532,0.00287597,92610.0,92609.0,0.25838173]
[1763606113759,0.00287597,92610.0,92609.0,0.01881]
[1763606114201,0.21883536,92610.0,92609.0,0.01881]
[1763606114435,0.00287597,92610.0,92609.0,0.01881]
[1763606114907,0.00487597,92610.0,92609.0,0.11881]
[1763606115338,0.00487597,92610.0,92609.0,0.33477173]
[1763606115572,0.00487597,92610.0,92609.0,0.11881]
[1763606115787,0.04416597,92610.0,92609.0,0.1]
[1763606116003,0.02286597,92610.0,92609.0,0.1]
[1763606116283,0.02286597,92610.0,92609.0,0.2]
[1763606116731,0.07316089,92610.0,92609.0,0.2]
[1763606116943,0.04616597,92610.0,92609.0,0.2]
[1763606117164,0.07316089,92610.0,92609.0,0.2]
[1763606117622,0.44826338,92610.0,92609.0,0.2]
[1763606117837,0.41926846,92610.0,92609.0,0.2]
[1763606118268,0.42026846,92610.0,92609.0,0.2]
[1763606118642,0.42026846,92610.0,92609.0,0.1]
[1763606118857,0.41726846,92610.0,92609.0,0.1]
[1763606119207,0.41726846,92610.0,92609.0,0.107]
[1763606119642,0.41726846,92610.0,92609.0,0.103]
[1763606120053,0.41726846,92610.0,92609.0,0.107]
[1763606120269,0.07096846,92610.0,92609.0,0.107]
[1763606120419,0.07096846,92610.0,92609.0,0.104]
[1763606120619,0.07096846,92610.0,92609.0,0.107]
[1763606121187,0.07096846,92610.0,92609.0,0.204]
[1763606121394,0.07096846,92610.0,92609.0,0.203]
[1763606121594,0.09426846,92610.0,92609.0,0.207]
[1763606122212,0.1094558,92610.0,92609.0,0.207]
[1763606122425,0.11799492,92610.0,92609.0,0.207]
[1763606122625,0.44099492,92610.0,92609.0,0.207]
[1763606122842,0.52756096,92610.0,92609.0,0.207]
[1763606123242,0.21605038,92571.0,92569.0,0.04440213]
[1763606123450,0.21605038,92571.0,92569.0,0.01197]
[1763606123646,0.01080333,92564.0,92562.0,0.03607451]
[1763606123866,0.24284534,92570.0,92563.0,3.0]
[1763606124066,0.01188,92571.0,92567.0,0.01080298]
[1763606124281,0.01188,92571.0,92568.0,0.01080286]
[1763606124438,0.01080228,92573.0,92568.0,0.22728118]
[1763606124669,0.01080228,92573.0,92568.0,0.01122596]